[Event "*** Titled Tuesday Blitz"]
[Site "Chess.com"]
[Date "2020.03.03"]
[Round "1"]
[White "M1711"]
[Black "sergiochess83"]
[Result "1-0"]
[WhiteElo "2526"]
[BlackElo "2952"]
[TimeControl "180+1"]
[EndTime "13:10:28 PST"]
[Termination "M1711 won on time"]

1. d4 {[%clk 0:03:00.2]} 1... Nf6 {[%clk 0:02:59.3]} 2. Bf4 {[%clk 0:02:54.7]}
2... c5 {[%clk 0:02:56.3]} 3. d5 {[%clk 0:02:53.3]} 3... b5 {[%clk 0:02:54.2]}
4. a4 {[%clk 0:02:48.3]} 4... Bb7 {[%clk 0:02:46.4]} 5. e4 {[%clk 0:02:33.2]}
5... b4 {[%clk 0:02:37.7]} 6. Bd3 {[%clk 0:02:24.5]} 6... d6 {[%clk 0:02:30.2]}
7. Nd2 {[%clk 0:02:23.3]} 7... Nbd7 {[%clk 0:02:19.3]} 8. Ngf3 {[%clk
0:02:19.9]} 8... g6 {[%clk 0:02:17.9]} 9. a5 {[%clk 0:02:10.1]} 9... Rc8 {[%clk
0:02:12.4]} 10. Nc4 {[%clk 0:02:03.5]} 10... Bg7 {[%clk 0:02:11.7]} 11. Bxd6
{[%clk 0:01:57.2]} 11... Ba6 {[%clk 0:01:59.2]} 12. Be5 {[%clk 0:01:31.9]} 12...
Nxe5 {[%clk 0:01:50.1]} 13. Nfxe5 {[%clk 0:01:29.2]} 13... O-O {[%clk
0:01:38.7]} 14. O-O {[%clk 0:01:27.1]} 14... Qc7 {[%clk 0:01:39.2]} 15. Re1
{[%clk 0:01:19.7]} 15... Bxc4 {[%clk 0:01:26.4]} 16. Nxc4 {[%clk 0:01:19.1]}
16... Nd7 {[%clk 0:01:27.3]} 17. g3 {[%clk 0:00:56.1]} 17... Ne5 {[%clk
0:01:22.5]} 18. Nxe5 {[%clk 0:00:56.4]} 18... Bxe5 {[%clk 0:01:22.7]} 19. Ra2
{[%clk 0:00:55.9]} 19... c4 {[%clk 0:01:21.7]} 20. Bf1 {[%clk 0:00:56.1]} 20...
Qc5 {[%clk 0:01:08.8]} 21. Kg2 {[%clk 0:00:54.6]} 21... Rb8 {[%clk 0:00:53.6]}
22. b3 {[%clk 0:00:45.1]} 22... Bc3 {[%clk 0:00:51.1]} 23. Re3 {[%clk 0:00:43]}
23... Bd4 {[%clk 0:00:44.2]} 24. Rf3 {[%clk 0:00:42.8]} 24... c3 {[%clk
0:00:42]} 25. h4 {[%clk 0:00:38.8]} 25... Kg7 {[%clk 0:00:41.3]} 26. h5 {[%clk
0:00:38.2]} 26... e5 {[%clk 0:00:39.3]} 27. Bc4 {[%clk 0:00:25.6]} 27... f5
{[%clk 0:00:36.4]} 28. hxg6 {[%clk 0:00:10.5]} 28... fxe4 {[%clk 0:00:34.8]} 29.
Rf7+ {[%clk 0:00:08.2]} 29... Rxf7 {[%clk 0:00:22.7]} 30. gxf7 {[%clk
0:00:09.1]} 30... Qd6 {[%clk 0:00:23.6]} 31. Qg4+ {[%clk 0:00:07.2]} 31... Qg6
{[%clk 0:00:13.4]} 32. Qxg6+ {[%clk 0:00:05.6]} 32... hxg6 {[%clk 0:00:14.3]}
33. Ra1 {[%clk 0:00:02.3]} 33... Kxf7 {[%clk 0:00:13.6]} 34. Re1 {[%clk
0:00:02.6]} 34... Kf6 {[%clk 0:00:08.6]} 35. Rxe4 {[%clk 0:00:02.8]} 35... g5
{[%clk 0:00:09.5]} 36. Re1 {[%clk 0:00:02.1]} 36... Rh8 {[%clk 0:00:08.3]} 37.
a6 {[%clk 0:00:01.9]} 37... Ke7 {[%clk 0:00:04.8]} 38. Re2 {[%clk 0:00:02.5]}
38... Kd6 {[%clk 0:00:04.9]} 39. Re1 {[%clk 0:00:03.1]} 39... Rh6 {[%clk
0:00:05.2]} 40. f3 {[%clk 0:00:03.6]} 40... Rh7 {[%clk 0:00:05.2]} 41. Ra1
{[%clk 0:00:03.6]} 41... Rf7 {[%clk 0:00:01.3]} 42. Re1 {[%clk 0:00:02.4]} 42...
g4 {[%clk 0:00:01.7]} 43. fxg4 {[%clk 0:00:01.7]} 43... Rf2+ {[%clk 0:00:01.5]}
44. Kh3 {[%clk 0:00:02.3]} 44... Rxc2 {[%clk 0:00:02.4]} 45. g5 {[%clk
0:00:02.8]} 45... Rf2 {[%clk 0:00:02.2]} 46. g6 {[%clk 0:00:03]} 46... Rf8
{[%clk 0:00:02.7]} 47. Rf1 {[%clk 0:00:02.2]} 47... Rh8+ {[%clk 0:00:02.2]} 48.
Kg4 {[%clk 0:00:01.7]} 48... c2 {[%clk 0:00:03.1]} 49. Rc1 {[%clk 0:00:02]}
49... Rh6 {[%clk 0:00:03.6]} 50. Rxc2 {[%clk 0:00:02.4]} 50... Rxg6+ {[%clk
0:00:03.8]} 51. Kf3 {[%clk 0:00:03.3]} 51... Bc3 {[%clk 0:00:02.5]} 52. Rh2
{[%clk 0:00:03.6]} 52... e4+ {[%clk 0:00:02.1]} 53. Kxe4 {[%clk 0:00:03.4]}
53... Rxg3 {[%clk 0:00:02.3]} 54. Rh6+ {[%clk 0:00:04]} 54... Kc7 {[%clk
0:00:02.9]} 55. Rc6+ {[%clk 0:00:04.3]} 55... Kd7 {[%clk 0:00:02.9]} 56. Bb5
{[%clk 0:00:04.6]} 56... Ke7 {[%clk 0:00:01.4]} 57. Re6+ {[%clk 0:00:04.3]}
57... Kf7 {[%clk 0:00:02.3]} 58. Rh6 {[%clk 0:00:03.3]} 58... Rg4+ {[%clk
0:00:02.2]} 59. Kf5 {[%clk 0:00:03.1]} 59... Rg1 {[%clk 0:00:02.6]} 60. Rh7+
{[%clk 0:00:03.3]} 60... Rg7 {[%clk 0:00:02.8]} 61. Rh2 {[%clk 0:00:02.4]} 61...
Ke7 {[%clk 0:00:02.9]} 62. Re2+ {[%clk 0:00:02]} 62... Kd6 {[%clk 0:00:03.2]}
63. Bc6 {[%clk 0:00:02.5]} 63... Rf7+ {[%clk 0:00:03.4]} 64. Kg6 {[%clk
0:00:02.9]} 64... Re7 {[%clk 0:00:04.3]} 65. Rf2 {[%clk 0:00:02.1]} 65... Re3
{[%clk 0:00:03.8]} 66. Rf8 {[%clk 0:00:01.7]} 66... Bd4 {[%clk 0:00:03.9]} 67.
Rd8+ {[%clk 0:00:02.2]} 67... Kc5 {[%clk 0:00:03.5]} 68. Rd7 {[%clk 0:00:03.1]}
68... Rxb3 {[%clk 0:00:02.9]} 69. Rxa7 {[%clk 0:00:03.3]} 69... Ra3 {[%clk
0:00:03.1]} 70. Ra8 {[%clk 0:00:03.6]} 70... Kd6 {[%clk 0:00:03]} 71. Rd8+
{[%clk 0:00:02.7]} 71... Ke5 {[%clk 0:00:02.5]} 72. Re8+ {[%clk 0:00:02.8]}
72... Kd6 {[%clk 0:00:02.3]} 73. Rb8 {[%clk 0:00:03.7]} 73... Rxa6 {[%clk
0:00:01.9]} 74. Rxb4 {[%clk 0:00:04.1]} 74... Bc5 {[%clk 0:00:02.2]} 75. Re4
{[%clk 0:00:04.1]} 75... Rxc6 {[%clk 0:00:01.9]} 76. dxc6 {[%clk 0:00:04]} 76...
Kxc6 {[%clk 0:00:02.8]} 77. Kf7 {[%clk 0:00:04.5]} 77... Kd5 {[%clk 0:00:02.8]}
78. Rg4 {[%clk 0:00:04.7]} 78... Bd4 {[%clk 0:00:03.7]} 79. Rg5+ {[%clk
0:00:04.8]} 79... Be5 {[%clk 0:00:03.5]} 80. Rh5 {[%clk 0:00:05.3]} 80... Ke4
{[%clk 0:00:04.4]} 81. Ke6 {[%clk 0:00:05.5]} 81... Bf4 {[%clk 0:00:05.3]} 82.
Rh4 {[%clk 0:00:06]} 82... Kf3 {[%clk 0:00:05.5]} 83. Kf5 {[%clk 0:00:06.5]}
83... Bg3 {[%clk 0:00:06.4]} 84. Ra4 {[%clk 0:00:05.8]} 84... Kg2 {[%clk
0:00:07.3]} 85. Kg4 {[%clk 0:00:05.3]} 85... Bh2 {[%clk 0:00:06.8]} 86. Ra1
{[%clk 0:00:04.5]} 86... Bg1 {[%clk 0:00:06.6]} 87. Ra2+ {[%clk 0:00:04.8]}
87... Kh1 {[%clk 0:00:06.7]} 88. Kf3 {[%clk 0:00:05.1]} 88... Bh2 {[%clk
0:00:06.3]} 89. Rg2 {[%clk 0:00:04.4]} 89... Bg1 {[%clk 0:00:06]} 90. Rg8 {[%clk
0:00:04.8]} 90... Bh2 {[%clk 0:00:05.7]} 91. Ke2 {[%clk 0:00:05.2]} 91... Be5
{[%clk 0:00:04.4]} 92. Rg5 {[%clk 0:00:04.4]} 92... Bf4 {[%clk 0:00:04.2]} 93.
Rh5+ {[%clk 0:00:03.2]} 93... Kg2 {[%clk 0:00:03.8]} 94. Rh8 {[%clk 0:00:02.9]}
94... Bh2 {[%clk 0:00:03.1]} 95. Rg8+ {[%clk 0:00:03.3]} 95... Kh1 {[%clk
0:00:03.3]} 96. Kf1 {[%clk 0:00:04.2]} 96... Be5 {[%clk 0:00:01.6]} 97. Rg2
{[%clk 0:00:04.7]} 97... Bh2 {[%clk 0:00:01.3]} 98. Kf2 {[%clk 0:00:04.9]} 1-0

[Event "*** Titled Tuesday Blitz"]
[Site "Chess.com"]
[Date "2020.03.03"]
[Round "1"]
[White "Yurovskykh_Oleksandr"]
[Black "Mikasinski"]
[Result "0-1"]
[WhiteElo "2606"]
[BlackElo "2258"]
[TimeControl "180+1"]
[EndTime "13:12:24 PST"]
[Termination "Mikasinski won on time"]

1. d4 {[%clk 0:02:59.6]} 1... Nf6 {[%clk 0:02:59.3]} 2. Nf3 {[%clk 0:02:59.7]}
2... g6 {[%clk 0:02:59.3]} 3. Bg5 {[%clk 0:02:59.8]} 3... Bg7 {[%clk 0:02:59.4]}
4. Nbd2 {[%clk 0:03:00]} 4... O-O {[%clk 0:02:57.9]} 5. c3 {[%clk 0:02:59.9]}
5... d6 {[%clk 0:02:56.3]} 6. e4 {[%clk 0:02:59.8]} 6... c5 {[%clk 0:02:56]} 7.
d5 {[%clk 0:02:59.4]} 7... h6 {[%clk 0:02:45.4]} 8. Bh4 {[%clk 0:02:56.8]} 8...
g5 {[%clk 0:02:45.6]} 9. Bg3 {[%clk 0:02:56.2]} 9... Nh5 {[%clk 0:02:41.4]} 10.
a4 {[%clk 0:02:55.6]} 10... Nxg3 {[%clk 0:02:41.2]} 11. hxg3 {[%clk 0:02:54.9]}
11... f5 {[%clk 0:02:39.7]} 12. exf5 {[%clk 0:02:52.2]} 12... Bxf5 {[%clk
0:02:39.2]} 13. Nc4 {[%clk 0:02:49.7]} 13... Nd7 {[%clk 0:02:37.4]} 14. Bd3
{[%clk 0:02:47.4]} 14... Qe8 {[%clk 0:02:32.2]} 15. Bxf5 {[%clk 0:02:38.1]}
15... Rxf5 {[%clk 0:02:31.4]} 16. Qd3 {[%clk 0:02:38.2]} 16... Rf8 {[%clk
0:02:08.1]} 17. O-O {[%clk 0:02:10.3]} 17... Qf7 {[%clk 0:01:57.8]} 18. Rae1
{[%clk 0:02:05.9]} 18... Rae8 {[%clk 0:01:52.8]} 19. Re6 {[%clk 0:02:04]} 19...
Kh8 {[%clk 0:01:34.4]} 20. Qc2 {[%clk 0:01:46]} 20... Rg8 {[%clk 0:00:55]} 21.
Rfe1 {[%clk 0:01:43.3]} 21... Bf6 {[%clk 0:00:50.6]} 22. g4 {[%clk 0:01:39.5]}
22... Rd8 {[%clk 0:00:42.4]} 23. Qf5 {[%clk 0:01:38.4]} 23... Nf8 {[%clk
0:00:38.3]} 24. R6e2 {[%clk 0:01:29.6]} 24... Qg6 {[%clk 0:00:28.1]} 25. Qxg6
{[%clk 0:01:21.6]} 25... Nxg6 {[%clk 0:00:27.5]} 26. g3 {[%clk 0:01:21.5]} 26...
b6 {[%clk 0:00:24.3]} 27. Kg2 {[%clk 0:01:21.3]} 27... Kg7 {[%clk 0:00:18.1]}
28. Ne3 {[%clk 0:01:21.2]} 28... Rh8 {[%clk 0:00:10.6]} 29. Nf5+ {[%clk
0:01:20.6]} 29... Kf7 {[%clk 0:00:10.4]} 30. Rh1 {[%clk 0:01:20.5]} 30... Bg7
{[%clk 0:00:07.1]} 31. Re6 {[%clk 0:00:56.2]} 31... a6 {[%clk 0:00:05.6]} 32.
Rhe1 {[%clk 0:00:36.4]} 32... Rd7 {[%clk 0:00:04.5]} 33. Nd2 {[%clk 0:00:32.1]}
33... Ne5 {[%clk 0:00:02.4]} 34. f4 {[%clk 0:00:27.6]} 34... Nxg4 {[%clk
0:00:01.1]} 35. Rxe7+ {[%clk 0:00:15.3]} 35... Rxe7 {[%clk 0:00:01.1]} 36. Rxe7+
{[%clk 0:00:16.2]} 36... Kf6 {[%clk 0:00:01.2]} 37. Rxg7 {[%clk 0:00:06.8]}
37... Kxf5 {[%clk 0:00:01.5]} 38. Rb7 {[%clk 0:00:04.1]} 38... Nf6 {[%clk
0:00:01.5]} 39. Rxb6 {[%clk 0:00:03.5]} 39... Rd8 {[%clk 0:00:02.1]} 40. Rxa6
{[%clk 0:00:03.4]} 40... Nxd5 {[%clk 0:00:02.4]} 41. fxg5 {[%clk 0:00:03.6]}
41... hxg5 {[%clk 0:00:02.3]} 42. Nc4 {[%clk 0:00:04]} 42... Ke6 {[%clk
0:00:01.7]} 43. Kf3 {[%clk 0:00:04.4]} 43... Rf8+ {[%clk 0:00:01.7]} 44. Ke4
{[%clk 0:00:04.9]} 44... Nf6+ {[%clk 0:00:02]} 45. Kd3 {[%clk 0:00:04.6]} 45...
Ne8 {[%clk 0:00:02.9]} 46. b4 {[%clk 0:00:04.8]} 46... Rf3+ {[%clk 0:00:03.5]}
47. Kc2 {[%clk 0:00:05.2]} 47... cxb4 {[%clk 0:00:03.4]} 48. cxb4 {[%clk
0:00:06.1]} 48... Rxg3 {[%clk 0:00:03.8]} 49. b5 {[%clk 0:00:06.6]} 49... Rg4
{[%clk 0:00:03.9]} 50. Kb3 {[%clk 0:00:06.3]} 50... Rg3+ {[%clk 0:00:03.7]} 51.
Kb4 {[%clk 0:00:06.6]} 51... Kd5 {[%clk 0:00:03.8]} 52. Nb6+ {[%clk 0:00:05.7]}
52... Ke6 {[%clk 0:00:03.3]} 53. Nc8 {[%clk 0:00:06.3]} 53... Rd3 {[%clk
0:00:02.2]} 54. Kc4 {[%clk 0:00:05.8]} 54... Rd1 {[%clk 0:00:01.7]} 55. Nb6
{[%clk 0:00:06.5]} 55... Rc1+ {[%clk 0:00:02.1]} 56. Kd3 {[%clk 0:00:07.4]}
56... Nc7 {[%clk 0:00:02.5]} 57. Nc4 {[%clk 0:00:07.7]} 57... Rd1+ {[%clk
0:00:02.3]} 58. Kc2 {[%clk 0:00:07.3]} 58... Rd5 {[%clk 0:00:02.2]} 59. Ra7
{[%clk 0:00:06.6]} 59... Ne8 {[%clk 0:00:01.5]} 60. Rh7 {[%clk 0:00:05.2]} 60...
Rc5 {[%clk 0:00:01.6]} 61. Kc3 {[%clk 0:00:05.6]} 61... Nf6 {[%clk 0:00:02.5]}
62. Rh6 {[%clk 0:00:05.5]} 62... Ke7 {[%clk 0:00:02.1]} 63. Kb3 {[%clk
0:00:05.3]} 63... Nd5 {[%clk 0:00:02.5]} 64. Nxd6 {[%clk 0:00:05.2]} 64... Nf4
{[%clk 0:00:01.5]} 65. Ne4 {[%clk 0:00:04]} 65... Re5 {[%clk 0:00:01.4]} 66.
Rh7+ {[%clk 0:00:04.4]} 66... Kd8 {[%clk 0:00:01.1]} 67. Nc3 {[%clk 0:00:05.3]}
67... Re3 {[%clk 0:00:01.6]} 68. Rh8+ {[%clk 0:00:05.9]} 68... Kc7 {[%clk
0:00:01.7]} 69. Kb4 {[%clk 0:00:06.8]} 69... Kb6 {[%clk 0:00:01.9]} 70. Nd5+
{[%clk 0:00:06.8]} 70... Nxd5+ {[%clk 0:00:01.3]} 71. Kc4 {[%clk 0:00:07.7]}
71... Nf4 {[%clk 0:00:01.8]} 72. Rh6+ {[%clk 0:00:08.2]} 72... Kc7 {[%clk
0:00:02]} 73. b6+ {[%clk 0:00:08.1]} 73... Kb7 {[%clk 0:00:02]} 74. a5 {[%clk
0:00:09]} 74... Re4+ {[%clk 0:00:02.3]} 75. Kb5 {[%clk 0:00:09.2]} 75... Re5+
{[%clk 0:00:02.5]} 76. Kb4 {[%clk 0:00:09.6]} 76... Ka6 {[%clk 0:00:02.5]} 77.
Rh7 {[%clk 0:00:09.5]} 77... Rb5+ {[%clk 0:00:03.2]} 78. Kc4 {[%clk 0:00:09.3]}
78... Rxa5 {[%clk 0:00:03.4]} 79. b7 {[%clk 0:00:09.7]} 79... Rb5 {[%clk
0:00:03.8]} 80. Rg7 {[%clk 0:00:09.4]} 80... Rxb7 {[%clk 0:00:04.2]} 81. Rxg5
{[%clk 0:00:09.6]} 81... Ne2 {[%clk 0:00:04.6]} 82. Kd3 {[%clk 0:00:09.3]} 82...
Rb6 {[%clk 0:00:04.8]} 83. Kxe2 {[%clk 0:00:08.7]} 83... Rb5 {[%clk 0:00:05.7]}
84. Rg6+ {[%clk 0:00:08.7]} 84... Ka5 {[%clk 0:00:06.2]} 85. Rg8 {[%clk
0:00:08.6]} 85... Rb6 {[%clk 0:00:06.2]} 86. Kd3 {[%clk 0:00:08.9]} 86... Kb5
{[%clk 0:00:07.1]} 87. Kc3 {[%clk 0:00:08.8]} 87... Rc6+ {[%clk 0:00:07.1]} 88.
Kb3 {[%clk 0:00:09.1]} 88... Kc5 {[%clk 0:00:07.5]} 89. Rd8 {[%clk 0:00:08.8]}
89... Kb6 {[%clk 0:00:07.7]} 90. Kb4 {[%clk 0:00:08.8]} 90... Rc7 {[%clk
0:00:07.8]} 91. Rh8 {[%clk 0:00:09]} 91... Rb7 {[%clk 0:00:08]} 92. Kc4 {[%clk
0:00:08.7]} 92... Rc7+ {[%clk 0:00:08]} 93. Kd5 {[%clk 0:00:08.9]} 93... Rd7+
{[%clk 0:00:08.1]} 94. Ke6 {[%clk 0:00:08.2]} 94... Rd2 {[%clk 0:00:08.1]} 95.
Rh1 {[%clk 0:00:08.1]} 95... Kc5 {[%clk 0:00:07.9]} 96. Rc1+ {[%clk 0:00:07.8]}
96... Kd4 {[%clk 0:00:08.1]} 97. Rc8 {[%clk 0:00:07.5]} 97... Re2+ {[%clk
0:00:08.2]} 98. Kf5 {[%clk 0:00:07.6]} 98... Rf2+ {[%clk 0:00:08.4]} 99. Kg4
{[%clk 0:00:07.6]} 99... Ke5 {[%clk 0:00:08.4]} 100. Re8+ {[%clk 0:00:07.5]}
100... Kd6 {[%clk 0:00:07.2]} 101. Rd8+ {[%clk 0:00:07.7]} 101... Ke7 {[%clk
0:00:07.2]} 102. Rd3 {[%clk 0:00:07.8]} 102... Rf6 {[%clk 0:00:07.1]} 103. Re3+
{[%clk 0:00:07.4]} 103... Re6 {[%clk 0:00:07.2]} 104. Ra3 {[%clk 0:00:08.3]}
104... Rf6 {[%clk 0:00:05.5]} 105. Kg5 {[%clk 0:00:08.1]} 105... Rf1 {[%clk
0:00:05.1]} 106. Ra6 {[%clk 0:00:07.2]} 106... Kd7 {[%clk 0:00:04.8]} 107. Ra7+
{[%clk 0:00:06.8]} 107... Ke6 {[%clk 0:00:04.6]} 108. Ra2 {[%clk 0:00:07.7]}
108... Kd6 {[%clk 0:00:04.3]} 109. Rd2+ {[%clk 0:00:06.9]} 109... Ke6 {[%clk
0:00:04.3]} 110. Kg4 {[%clk 0:00:06.9]} 110... Rg1+ {[%clk 0:00:04]} 111. Kf3
{[%clk 0:00:06.9]} 111... Rf1+ {[%clk 0:00:04.2]} 112. Ke2 {[%clk 0:00:07.1]}
112... Rf5 {[%clk 0:00:04.5]} 113. Ra2 {[%clk 0:00:06.1]} 113... Re5+ {[%clk
0:00:04.3]} 114. Kd3 {[%clk 0:00:06.3]} 114... Rh5 {[%clk 0:00:04.6]} 115. Ra6+
{[%clk 0:00:05]} 115... Kd7 {[%clk 0:00:05.5]} 116. Ra7+ {[%clk 0:00:05]} 116...
Kc6 {[%clk 0:00:05.5]} 117. Rg7 {[%clk 0:00:05.9]} 117... Rh3+ {[%clk
0:00:05.5]} 118. Kc4 {[%clk 0:00:06]} 118... Rh4+ {[%clk 0:00:06.2]} 119. Kb3
{[%clk 0:00:06.1]} 119... Rh3+ {[%clk 0:00:07.1]} 120. Kb4 {[%clk 0:00:05.6]}
120... Rh4+ {[%clk 0:00:06.9]} 121. Ka5 {[%clk 0:00:05.6]} 121... Rh5+ {[%clk
0:00:06.7]} 122. Ka6 {[%clk 0:00:05.3]} 122... Rh1 {[%clk 0:00:06.7]} 123. Rg6+
{[%clk 0:00:05.2]} 123... Kc5 {[%clk 0:00:07.3]} 124. Kb7 {[%clk 0:00:04.8]}
124... Rb1+ {[%clk 0:00:06.4]} 125. Kc7 {[%clk 0:00:04.1]} 125... Rd1 {[%clk
0:00:06.3]} 126. Rc6+ {[%clk 0:00:03.5]} 126... Kb4 {[%clk 0:00:05]} 127. Rb6+
{[%clk 0:00:03.2]} 127... Ka5 {[%clk 0:00:04.6]} 128. Rc6 {[%clk 0:00:03.3]}
128... Rb1 {[%clk 0:00:04]} 129. Rc5+ {[%clk 0:00:02.6]} 129... Rb5 {[%clk
0:00:03.4]} 130. Rc1 {[%clk 0:00:02.5]} 130... Kb4 {[%clk 0:00:04]} 131. Kc6
{[%clk 0:00:02.5]} 131... Rc5+ {[%clk 0:00:04.3]} 0-1

[Event "*** Titled Tuesday Blitz"]
[Site "Chess.com"]
[Date "2020.03.03"]
[Round "2"]
[White "HanSchut"]
[Black "Fy_Rakotomaharo"]
[Result "0-1"]
[WhiteElo "2304"]
[BlackElo "2534"]
[TimeControl "180+1"]
[EndTime "13:14:29 PST"]
[Termination "Fy_Rakotomaharo won by resignation"]

1. e4 {[%clk 0:03:00.9]} 1... c5 {[%clk 0:02:59.8]} 2. Nf3 {[%clk 0:02:58.4]}
2... Nc6 {[%clk 0:03:00.2]} 3. Nc3 {[%clk 0:02:57.3]} 3... d6 {[%clk 0:02:59.7]}
4. d3 {[%clk 0:02:53.7]} 4... g6 {[%clk 0:02:57]} 5. g3 {[%clk 0:02:53.6]} 5...
Bg7 {[%clk 0:02:57.4]} 6. Bg2 {[%clk 0:02:54.2]} 6... e5 {[%clk 0:02:58.1]} 7.
O-O {[%clk 0:02:54.8]} 7... Nge7 {[%clk 0:02:58.6]} 8. Be3 {[%clk 0:02:49.5]}
8... O-O {[%clk 0:02:58]} 9. Qd2 {[%clk 0:02:49.8]} 9... Rb8 {[%clk 0:02:50.7]}
10. Bh6 {[%clk 0:02:48.5]} 10... b5 {[%clk 0:02:48.8]} 11. Ne2 {[%clk
0:02:38.6]} 11... b4 {[%clk 0:02:46.3]} 12. Nh4 {[%clk 0:02:17.6]} 12... a5
{[%clk 0:02:40.9]} 13. f4 {[%clk 0:02:17.3]} 13... Bxh6 {[%clk 0:02:40.3]} 0-1

[Event "*** Titled Tuesday Blitz"]
[Site "Chess.com"]
[Date "2020.03.03"]
[Round "2"]
[White "stoleriu"]
[Black "czasnaszachy"]
[Result "1/2-1/2"]
[WhiteElo "2479"]
[BlackElo "2252"]
[TimeControl "180+1"]
[EndTime "13:15:13 PST"]
[Termination "Game drawn by agreement"]

1. e4 {[%clk 0:02:55]} 1... c5 {[%clk 0:02:59.2]} 2. Nc3 {[%clk 0:02:53.4]} 2...
a6 {[%clk 0:02:55.7]} 3. Nf3 {[%clk 0:02:51.1]} 3... d6 {[%clk 0:02:54]} 4. d4
{[%clk 0:02:51.1]} 4... cxd4 {[%clk 0:02:53.4]} 5. Nxd4 {[%clk 0:02:52]} 5...
Nf6 {[%clk 0:02:53.5]} 6. a4 {[%clk 0:02:49.6]} 6... g6 {[%clk 0:02:52.2]} 7.
Be2 {[%clk 0:02:48]} 7... Bg7 {[%clk 0:02:52.1]} 8. Be3 {[%clk 0:02:48.2]} 8...
Nc6 {[%clk 0:02:52.3]} 9. Nxc6 {[%clk 0:02:47.5]} 9... bxc6 {[%clk 0:02:51.8]}
10. a5 {[%clk 0:02:47]} 10... O-O {[%clk 0:02:38.1]} 11. O-O {[%clk 0:02:46.7]}
11... Rb8 {[%clk 0:02:30.2]} 12. Bb6 {[%clk 0:02:43.7]} 12... Qe8 {[%clk
0:02:29.2]} 13. Bd3 {[%clk 0:02:40.5]} 13... Nd7 {[%clk 0:02:29]} 14. Na4 {[%clk
0:02:37.3]} 14... Nxb6 {[%clk 0:02:21]} 15. axb6 {[%clk 0:02:37.3]} 15... c5
{[%clk 0:02:16.9]} 16. c3 {[%clk 0:02:32.8]} 16... Bd7 {[%clk 0:02:12]} 1/2-1/2

[Event "*** Titled Tuesday Blitz"]
[Site "Chess.com"]
[Date "2020.03.03"]
[Round "2"]
[White "Eliwood44"]
[Black "nonscitis"]
[Result "0-1"]
[WhiteElo "2314"]
[BlackElo "2577"]
[TimeControl "180+1"]
[EndTime "13:15:27 PST"]
[Termination "nonscitis won by resignation"]

1. d4 {[%clk 0:03:00.9]} 1... Nf6 {[%clk 0:02:59.5]} 2. Nf3 {[%clk 0:02:58.3]}
2... g6 {[%clk 0:02:59.3]} 3. e3 {[%clk 0:02:57.7]} 3... Bg7 {[%clk 0:02:59.7]}
4. Be2 {[%clk 0:02:58.2]} 4... O-O {[%clk 0:02:59.9]} 5. O-O {[%clk 0:02:58.8]}
5... b6 {[%clk 0:03:00.2]} 6. b3 {[%clk 0:02:58.7]} 6... Bb7 {[%clk 0:03:00.5]}
7. Bb2 {[%clk 0:02:59.3]} 7... d6 {[%clk 0:03:00.9]} 8. c4 {[%clk 0:02:59.4]}
8... Nbd7 {[%clk 0:03:01.1]} 9. d5 {[%clk 0:02:59.1]} 9... e6 {[%clk 0:03:00]}
10. Nc3 {[%clk 0:02:57.3]} 10... exd5 {[%clk 0:02:59.7]} 11. Nxd5 {[%clk
0:02:57.5]} 11... Nxd5 {[%clk 0:02:58.5]} 12. Bxg7 {[%clk 0:02:58.4]} 12... Nxe3
{[%clk 0:02:58.4]} 13. fxe3 {[%clk 0:02:24.3]} 13... Kxg7 {[%clk 0:02:57.9]} 14.
h4 {[%clk 0:02:19.5]} 14... Qe7 {[%clk 0:02:55.8]} 15. Qd4+ {[%clk 0:02:17.5]}
15... Ne5 {[%clk 0:02:54.6]} 16. Ng5 {[%clk 0:02:13.9]} 16... f6 {[%clk
0:02:51.7]} 17. Nh3 {[%clk 0:02:12]} 17... c5 {[%clk 0:02:49.8]} 18. Qd2 {[%clk
0:02:10.4]} 18... Rae8 {[%clk 0:02:49.7]} 19. Rae1 {[%clk 0:02:09.3]} 19... Kh8
{[%clk 0:02:45.5]} 20. Nf4 {[%clk 0:02:08.2]} 20... Nf7 {[%clk 0:02:43.4]} 21.
Bf3 {[%clk 0:02:06.8]} 21... Bxf3 {[%clk 0:02:41.3]} 22. gxf3 {[%clk 0:02:06.9]}
22... Ne5 {[%clk 0:02:41.8]} 23. Nd5 {[%clk 0:02:06.9]} 23... Qd7 {[%clk
0:02:40.8]} 24. Qg2 {[%clk 0:02:05.9]} 24... Nc6 {[%clk 0:02:38.5]} 25. Qb2
{[%clk 0:01:59.6]} 25... Qh3 {[%clk 0:02:32.1]} 26. Nxf6 {[%clk 0:01:55.1]}
26... Qg3+ {[%clk 0:02:31.6]} 0-1

[Event "*** Titled Tuesday Blitz"]
[Site "Chess.com"]
[Date "2020.03.03"]
[Round "2"]
[White "PNEPaul"]
[Black "Sven_Tica"]
[Result "0-1"]
[WhiteElo "1922"]
[BlackElo "2666"]
[TimeControl "180+1"]
[EndTime "13:16:09 PST"]
[Termination "Sven_Tica won by resignation"]

1. e4 {[%clk 0:03:00.9]} 1... c5 {[%clk 0:03:00.2]} 2. d4 {[%clk 0:03:00.1]}
2... cxd4 {[%clk 0:02:58.8]} 3. c3 {[%clk 0:03:00.1]} 3... d3 {[%clk 0:02:59.3]}
4. Bxd3 {[%clk 0:02:59.3]} 4... Nc6 {[%clk 0:03:00.1]} 5. Nf3 {[%clk 0:02:59.4]}
5... g6 {[%clk 0:03:00.6]} 6. Bf4 {[%clk 0:02:57.9]} 6... Bg7 {[%clk 0:03:00.7]}
7. Qe2 {[%clk 0:02:57.9]} 7... d6 {[%clk 0:02:56.5]} 8. Na3 {[%clk 0:02:55.4]}
8... Nf6 {[%clk 0:02:51.7]} 9. O-O {[%clk 0:02:52.9]} 9... O-O {[%clk
0:02:51.5]} 10. h3 {[%clk 0:02:52.4]} 10... Nd7 {[%clk 0:02:50.8]} 11. Rad1
{[%clk 0:02:50]} 11... Qc7 {[%clk 0:02:45.2]} 12. Rfe1 {[%clk 0:02:47.9]} 12...
a6 {[%clk 0:02:43.8]} 13. Qd2 {[%clk 0:02:40.9]} 13... Nde5 {[%clk 0:02:40.4]}
14. Nxe5 {[%clk 0:02:40.4]} 14... Nxe5 {[%clk 0:02:41.3]} 15. Bb1 {[%clk
0:02:33.7]} 15... Rb8 {[%clk 0:02:38.1]} 16. Bh6 {[%clk 0:02:32.2]} 16... b5
{[%clk 0:02:27.6]} 17. Bxg7 {[%clk 0:02:31]} 17... Kxg7 {[%clk 0:02:28.5]} 18.
f4 {[%clk 0:02:27.9]} 18... Nc4 {[%clk 0:02:28.5]} 19. Nxc4 {[%clk 0:02:26.8]}
19... bxc4 {[%clk 0:02:28.2]} 20. f5 {[%clk 0:02:12.4]} 20... Qb6+ {[%clk
0:02:22.9]} 21. Kh1 {[%clk 0:02:06.7]} 21... Qxb2 {[%clk 0:02:21.7]} 22. f6+
{[%clk 0:02:00.5]} 22... exf6 {[%clk 0:02:16.7]} 23. Qxd6 {[%clk 0:01:56]} 23...
Be6 {[%clk 0:02:16.5]} 24. Rf1 {[%clk 0:01:53]} 24... Qxc3 {[%clk 0:02:16.2]}
25. Qf4 {[%clk 0:01:48.6]} 25... Qe5 {[%clk 0:02:14.3]} 26. Qf2 {[%clk
0:01:37.2]} 26... Rb2 {[%clk 0:02:13.4]} 27. Rd2 {[%clk 0:01:34.1]} 27... Rfb8
{[%clk 0:02:10.2]} 28. Rfd1 {[%clk 0:01:33.6]} 28... Rxb1 {[%clk 0:02:09.5]} 0-1